[Event "Gibraltar Masters 18th"]
[Site "Gibraltar"]
[Date "2020.01.21"]
[Round "1.18"]
[White "Sasikiran, Krishnan"]
[Black "Vega Gutierrez, Sabrina"]
[Result "1/2-1/2"]
[ECO "B30"]
[WhiteElo "2648"]
[BlackElo "2364"]
[PlyCount "125"]
[EventDate "2020.01.21"]
[EventType "swiss"]
[EventRounds "10"]
[EventCountry "GGB"]
[SourceTitle "BritBase"]
[Source "John Saunders"]
[SourceDate "2021.06.05"]
[SourceVersion "1"]
[SourceVersionDate "2021.06.05"]
[SourceQuality "1"]
[TimeControl "40/100:0"]
[WhiteClock "0:11:20"]
[BlackClock "0:09:04"]

1. e4 {[%emt 0:00:00]} c5 {[%emt 0:00:00]} 2. Nf3 {[%emt 0:00:00]} Nc6 {
[%emt 0:00:00]} 3. Nc3 {[%emt 0:00:00]} e5 {[%emt 0:00:00]} 4. Bc4 {[%emt 0:00:
00]} Be7 {[%emt 0:00:00]} 5. d3 {[%emt 0:00:00]} d6 {[%emt 0:00:00]} 6. Nd2 {
[%emt 0:00:00]} Nf6 {[%emt 0:00:00]} 7. Nf1 {[%emt 0:00:00]} Nd7 {[%emt 0:00:
00]} 8. Ne3 {[%emt 0:00:00]} Nb6 {[%emt 0:00:00]} 9. O-O {[%emt 0:00:00]} O-O {
[%emt 0:00:00]} 10. Ned5 {[%emt 0:00:00]} Be6 {[%emt 0:00:00]} 11. f4 {[%emt 0:
00:00]} exf4 {[%emt 0:00:00]} 12. Bxf4 {[%emt 0:00:00]} Bg5 {[%emt 0:00:00]}
13. Qh5 {[%emt 0:00:00]} h6 {[%emt 0:00:00]} 14. b3 {[%emt 0:00:00]} Nd4 {
[%emt 0:00:00]} 15. Ne3 {[%emt 0:00:00]} Nd7 {[%emt 0:00:00]} 16. Bxg5 {
[%emt 0:00:00]} Qxg5 {[%emt 0:00:00]} 17. Qxg5 {[%emt 0:00:00]} hxg5 {[%emt 0:
00:00]} 18. a4 {[%emt 0:00:00]} a6 {[%emt 0:00:00]} 19. a5 {[%emt 0:00:00]} Ne5
{[%emt 0:00:00]} 20. Rf2 {[%emt 0:00:00]} g6 {[%emt 0:00:00]} 21. Ncd5 {
[%emt 0:00:00]} Kg7 {[%emt 0:00:00]} 22. Rb1 {[%emt 0:00:00]} Rab8 {[%emt 0:00:
00]} 23. Nb6 {[%emt 0:00:00]} Ndc6 {[%emt 0:00:00]} 24. Ra1 {[%emt 0:00:00]}
Rh8 {[%emt 0:00:00]} 25. h3 {[%emt 0:00:00]} Rh4 {[%emt 0:00:00]} 26. Bxe6 {
[%emt 0:00:00]} fxe6 {[%emt 0:00:00]} 27. Raf1 {[%emt 0:00:00]} Rf4 {[%emt 0:
00:00]} 28. Rxf4 {[%emt 0:00:00]} gxf4 {[%emt 0:00:00]} 29. Nec4 {[%emt 0:00:
00]} Nxc4 {[%emt 0:00:00]} 30. Nxc4 {[%emt 0:00:00]} e5 {[%emt 0:00:00]} 31.
Nxd6 {[%emt 0:00:00]} Nxa5 {[%emt 0:00:00]} 32. g3 {[%emt 0:00:00]} Rd8 {
[%emt 0:00:00]} 33. Nc4 {[%emt 0:00:00]} Nxc4 {[%emt 0:00:00]} 34. bxc4 {
[%emt 0:00:00]} fxg3 {[%emt 0:00:00]} 35. Rb1 {[%emt 0:00:00]} Rd7 {[%emt 0:00:
00]} 36. Kg2 {[%emt 0:00:00]} Kh6 {[%emt 0:00:36]} 37. Kxg3 {[%emt 0:00:00]}
Rf7 {[%emt 0:00:00]} 38. Rb6 {[%emt 0:00:00]} Re7 {[%emt 0:00:28]} 39. Kg4 {
[%emt 0:00:00]} a5 {[%emt 0:00:00]} 40. Rb5 {[%emt 0:00:00]} b6 {[%emt 0:00:00]
} 41. Rxb6 {[%emt 0:00:00]} Ra7 {[%emt 0:01:23]} 42. Rb3 {[%emt 0:01:12]} a4 {
[%emt 0:00:00]} 43. Ra3 {[%emt 0:00:00]} Ra6 {[%emt 0:00:00]} 44. c3 {[%emt 0:
00:00]} Rd6 {[%emt 0:00:00]} 45. Rxa4 {[%emt 0:00:00]} Rxd3 {[%emt 0:00:00]}
46. Ra5 {[%emt 0:00:00]} Re3 {[%emt 0:00:00]} 47. Rxc5 {[%emt 0:00:00]} Rxe4+ {
[%emt 0:00:00]} 48. Kf3 {[%emt 0:00:00]} Rh4 {[%emt 0:00:00]} 49. Kg2 {[%emt 0:
00:00]} Re4 {[%emt 0:00:00]} 50. Kf2 {[%emt 0:00:00]} Kg5 {[%emt 0:00:00]} 51.
Kf3 {[%emt 0:00:00]} Kf5 {[%emt 0:00:00]} 52. Rc8 {[%emt 0:00:00]} Rh4 {
[%emt 0:00:00]} 53. Kg2 {[%emt 0:00:00]} g5 {[%emt 0:00:00]} 54. c5 {[%emt 0:
00:00]} g4 {[%emt 0:00:00]} 55. c6 {[%emt 0:00:00]} gxh3+ {[%emt 0:00:00]} 56.
Kh2 {[%emt 0:00:00]} Rc4 {[%emt 0:00:00]} 57. c7 {[%emt 0:00:00]} Ke4 {[%emt 0:
00:00]} 58. Kxh3 {[%emt 0:00:00]} Rxc3+ {[%emt 0:00:00]} 59. Kg4 {[%emt 0:00:
00]} Rc1 {[%emt 0:00:00]} 60. Kg5 {[%emt 0:00:00]} Rc6 {[%emt 0:00:00]} 61. Kh5
{[%emt 0:00:00]} Ke3 {[%emt 0:00:00]} 62. Re8 {[%emt 0:00:00]} Rxc7 {[%emt 0:
00:00]} 63. Rxe5+ {[%emt 0:00:00]} 1/2-1/2

[Event "Gibraltar Masters 18th"]
[Site "Gibraltar"]
[Date "2020.01.21"]
[Round "1.19"]
[White "Shachar, Ehud"]
[Black "Donchenko, Alexander"]
[Result "0-1"]
[ECO "B50"]
[WhiteElo "2363"]
[BlackElo "2647"]
[PlyCount "84"]
[EventDate "2020.01.21"]
[EventType "swiss"]
[EventRounds "10"]
[EventCountry "GGB"]
[SourceTitle "BritBase"]
[Source "John Saunders"]
[SourceDate "2021.06.05"]
[SourceVersion "1"]
[SourceVersionDate "2021.06.05"]
[SourceQuality "1"]
[TimeControl "40/100:0"]
[WhiteClock "0:02:43"]
[BlackClock "0:05:21"]

1. e4 {[%emt 0:00:00]} c5 {[%emt 0:00:00]} 2. Nf3 {[%emt 0:00:00]} d6 {[%emt 0:
00:00]} 3. c3 {[%emt 0:00:00]} Nf6 {[%emt 0:00:00]} 4. Be2 {[%emt 0:00:00]} g6
{[%emt 0:00:00]} 5. O-O {[%emt 0:00:00]} Bg7 {[%emt 0:00:00]} 6. Bb5+ {[%emt 0:
00:00]} Nc6 {[%emt 0:00:00]} 7. d4 {[%emt 0:00:00]} Qb6 {[%emt 0:00:00]} 8. Ba4
{[%emt 0:00:00]} cxd4 {[%emt 0:00:00]} 9. cxd4 {[%emt 0:00:00]} O-O {[%emt 0:
00:00]} 10. d5 {[%emt 0:00:00]} Na5 {[%emt 0:00:00]} 11. Nc3 {[%emt 0:00:00]}
Bg4 {[%emt 0:00:00]} 12. h3 {[%emt 0:00:00]} Bxf3 {[%emt 0:00:00]} 13. Qxf3 {
[%emt 0:00:00]} Rfc8 {[%emt 0:00:00]} 14. Qe2 {[%emt 0:00:00]} a6 {[%emt 0:00:
00]} 15. a3 {[%emt 0:00:00]} Qc7 {[%emt 0:00:00]} 16. Rd1 {[%emt 0:00:00]} b5 {
[%emt 0:00:00]} 17. Bc2 {[%emt 0:00:00]} Nd7 {[%emt 0:00:00]} 18. Rd3 {[%emt 0:
00:00]} Nc4 {[%emt 0:00:00]} 19. Rg3 {[%emt 0:00:00]} Qa5 {[%emt 0:00:00]} 20.
Nd1 {[%emt 0:00:00]} b4 {[%emt 0:00:00]} 21. a4 {[%emt 0:00:00]} Qc7 {[%emt 0:
00:00]} 22. Bd3 {[%emt 0:00:00]} Nde5 {[%emt 0:00:00]} 23. Bf4 {[%emt 0:00:00]}
Qc5 {[%emt 0:00:00]} 24. Rc1 {[%emt 0:00:00]} Qd4 {[%emt 0:00:00]} 25. Bb1 {
[%emt 0:00:00]} a5 {[%emt 0:00:00]} 26. b3 {[%emt 0:00:00]} Na3 {[%emt 0:00:00]
} 27. Bd3 {[%emt 0:00:00]} Rxc1 {[%emt 0:00:00]} 28. Bxc1 {[%emt 0:00:00]} Nxd3
{[%emt 0:00:00]} 29. Rxd3 {[%emt 0:00:00]} Qa1 {[%emt 0:00:00]} 30. Bb2 {
[%emt 0:00:00]} Bxb2 {[%emt 0:00:00]} 31. Qxb2 {[%emt 0:00:00]} Qxb2 {[%emt 0:
00:00]} 32. Nxb2 {[%emt 0:00:00]} Rc8 {[%emt 0:00:00]} 33. g3 {[%emt 0:00:00]}
Rc2 {[%emt 0:00:00]} 34. Nd1 {[%emt 0:00:00]} Nb1 {[%emt 0:00:00]} 35. Ne3 {
[%emt 0:00:00]} Rd2 {[%emt 0:00:00]} 36. Rxd2 {[%emt 0:00:00]} Nxd2 {[%emt 0:
00:00]} 37. Kg2 {[%emt 0:00:00]} Nxb3 {[%emt 0:00:00]} 38. Nc4 {[%emt 0:00:00]}
Nc5 {[%emt 0:00:00]} 39. Nxa5 {[%emt 0:00:00]} b3 {[%emt 0:00:00]} 40. Nc4 {
[%emt 0:00:00]} Nxa4 {[%emt 0:00:00]} 41. Nd2 {[%emt 0:00:42]} Nc3 {[%emt 0:00:
00]} 42. Nxb3 {[%emt 0:00:00]} Nxe4 {[%emt 0:00:00]} 0-1

[Event "Gibraltar Masters 18th"]
[Site "Gibraltar"]
[Date "2020.01.21"]
[Round "1.20"]
[White "Tabatabaei, M.Amin"]
[Black "Abrahamyan, Tatev"]
[Result "1-0"]
[ECO "C18"]
[WhiteElo "2638"]
[BlackElo "2363"]
[PlyCount "69"]
[EventDate "2020.01.21"]
[EventType "swiss"]
[EventRounds "10"]
[EventCountry "GGB"]
[SourceTitle "BritBase"]
[Source "John Saunders"]
[SourceDate "2021.06.05"]
[SourceVersion "1"]
[SourceVersionDate "2021.06.05"]
[SourceQuality "1"]
[TimeControl "40/100:0"]
[WhiteClock "0:09:17"]
[BlackClock "0:04:30"]

1. e4 {[%emt 0:00:00]} e6 {[%emt 0:00:00]} 2. d4 {[%emt 0:00:00]} d5 {[%emt 0:
00:00]} 3. Nc3 {[%emt 0:00:00]} Bb4 {[%emt 0:00:00]} 4. e5 {[%emt 0:00:00]} Ne7
{[%emt 0:00:00]} 5. a3 {[%emt 0:00:00]} Bxc3+ {[%emt 0:00:00]} 6. bxc3 {
[%emt 0:00:00]} c5 {[%emt 0:00:00]} 7. Qg4 {[%emt 0:00:00]} O-O {[%emt 0:00:00]
} 8. Bd3 {[%emt 0:00:00]} f5 {[%emt 0:00:00]} 9. exf6 {[%emt 0:00:00]} Rxf6 {
[%emt 0:00:00]} 10. Bg5 {[%emt 0:00:00]} Rf7 {[%emt 0:00:00]} 11. Qh5 {[%emt 0:
00:00]} g6 {[%emt 0:00:00]} 12. Qd1 {[%emt 0:00:00]} Nbc6 {[%emt 0:00:00]} 13.
Nf3 {[%emt 0:00:00]} Qf8 {[%emt 0:00:00]} 14. O-O {[%emt 0:00:00]} c4 {[%emt 0:
00:00]} 15. Be2 {[%emt 0:00:00]} h6 {[%emt 0:00:00]} 16. Bc1 {[%emt 0:00:00]}
Bd7 {[%emt 0:00:00]} 17. a4 {[%emt 0:00:00]} Qg7 {[%emt 0:00:00]} 18. Qd2 {
[%emt 0:00:00]} Kh7 {[%emt 0:00:00]} 19. h3 {[%emt 0:00:00]} Nf5 {[%emt 0:00:
00]} 20. Ba3 {[%emt 0:00:00]} g5 {[%emt 0:00:00]} 21. Nh2 {[%emt 0:00:00]} Be8
{[%emt 0:00:00]} 22. Rae1 {[%emt 0:00:00]} Qg6 {[%emt 0:00:00]} 23. Bg4 {
[%emt 0:00:00]} h5 {[%emt 0:00:00]} 24. Bxf5 {[%emt 0:00:00]} Rxf5 {[%emt 0:00:
00]} 25. g4 {[%emt 0:00:00]} hxg4 {[%emt 0:00:00]} 26. hxg4 {[%emt 0:00:00]}
Rf7 {[%emt 0:00:00]} 27. f4 {[%emt 0:00:00]} gxf4 {[%emt 0:00:00]} 28. Rxf4 {
[%emt 0:00:00]} Bd7 {[%emt 0:00:00]} 29. Rxf7+ {[%emt 0:00:00]} Qxf7 {[%emt 0:
00:00]} 30. Rf1 {[%emt 0:00:00]} Qg6 {[%emt 0:00:00]} 31. Rf3 {[%emt 0:00:00]}
Re8 {[%emt 0:00:00]} 32. Qf2 {[%emt 0:00:00]} Kg7 {[%emt 0:00:00]} 33. Bf8+ {
[%emt 0:00:00]} Kg8 {[%emt 0:00:00]} 34. Rf6 {[%emt 0:00:00]} Qe4 {[%emt 0:00:
00]} 35. Rf7 {[%emt 0:00:00]} 1-0

[Event "Gibraltar Masters 18th"]
[Site "Gibraltar"]
[Date "2020.01.21"]
[Round "1.21"]
[White "Gschnitzer, Oswald"]
[Black "Narayanan, SL."]
[Result "1/2-1/2"]
[ECO "A41"]
[WhiteElo "2361"]
[BlackElo "2637"]
[PlyCount "116"]
[EventDate "2020.01.21"]
[EventType "swiss"]
[EventRounds "10"]
[EventCountry "GGB"]
[SourceTitle "BritBase"]
[Source "John Saunders"]
[SourceDate "2021.06.05"]
[SourceVersion "1"]
[SourceVersionDate "2021.06.05"]
[SourceQuality "1"]
[TimeControl "40/100:0"]
[WhiteClock "0:05:33"]
[BlackClock "0:06:54"]

1. Nf3 {[%emt 0:00:00]} g6 {[%emt 0:00:00]} 2. e4 {[%emt 0:00:00]} Bg7 {
[%emt 0:00:00]} 3. d4 {[%emt 0:00:00]} d6 {[%emt 0:00:00]} 4. c4 {[%emt 0:00:
00]} Bg4 {[%emt 0:00:00]} 5. Be2 {[%emt 0:00:00]} Nc6 {[%emt 0:00:00]} 6. Nbd2
{[%emt 0:00:00]} Nf6 {[%emt 0:00:00]} 7. d5 {[%emt 0:00:00]} Nb8 {[%emt 0:00:
00]} 8. e5 {[%emt 0:00:00]} dxe5 {[%emt 0:00:00]} 9. Nxe5 {[%emt 0:00:00]} Bxe2
{[%emt 0:00:00]} 10. Qxe2 {[%emt 0:00:00]} O-O {[%emt 0:00:00]} 11. Ndf3 {
[%emt 0:00:00]} Qc8 {[%emt 0:00:00]} 12. O-O {[%emt 0:00:00]} c6 {[%emt 0:00:
00]} 13. dxc6 {[%emt 0:00:00]} Nxc6 {[%emt 0:00:00]} 14. b3 {[%emt 0:00:00]}
Nxe5 {[%emt 0:00:00]} 15. Nxe5 {[%emt 0:00:00]} Qc7 {[%emt 0:00:00]} 16. Bb2 {
[%emt 0:00:00]} Rad8 {[%emt 0:00:00]} 17. Rad1 {[%emt 0:00:00]} Nh5 {[%emt 0:
00:00]} 18. g3 {[%emt 0:00:00]} Nf6 {[%emt 0:00:00]} 19. Rfe1 {[%emt 0:00:00]}
Rfe8 {[%emt 0:00:00]} 20. Rxd8 {[%emt 0:00:00]} Rxd8 {[%emt 0:00:00]} 21. Rd1 {
[%emt 0:00:00]} Rxd1+ 22. Qxd1 {[%emt 0:00:00]} Nd7 {[%emt 0:00:00]} 23. Nd3 {
[%emt 0:00:00]} Bxb2 {[%emt 0:00:00]} 24. Nxb2 {[%emt 0:00:00]} Ne5 {[%emt 0:
00:00]} 25. Qe2 {[%emt 0:00:00]} Qd6 {[%emt 0:00:00]} 26. Qe4 {[%emt 0:00:00]}
b6 {[%emt 0:00:00]} 27. Kg2 {[%emt 0:00:00]} f6 {[%emt 0:00:00]} 28. Na4 {
[%emt 0:00:00]} Kg7 {[%emt 0:00:00]} 29. Nc3 {[%emt 0:00:00]} Qd2 {[%emt 0:00:
00]} 30. Qe3 {[%emt 0:00:00]} Qc2 {[%emt 0:00:00]} 31. h3 {[%emt 0:00:00]} h5 {
[%emt 0:00:00]} 32. Nd5 {[%emt 0:00:00]} Kf7 {[%emt 0:00:00]} 33. a4 {[%emt 0:
00:00]} g5 {[%emt 0:00:00]} 34. Nb4 {[%emt 0:00:10]} Qd1 {[%emt 0:00:00]} 35.
Nd5 {[%emt 0:00:14]} e6 {[%emt 0:00:00]} 36. Nc7 {[%emt 0:00:21]} Qd7 {[%emt 0:
00:00]} 37. Nb5 {[%emt 0:00:00]} Qc6+ {[%emt 0:00:00]} 38. Kg1 {[%emt 0:00:00]}
a6 {[%emt 0:00:00]} 39. Nd4 {[%emt 0:00:00]} Qd6 {[%emt 0:00:00]} 40. Kf1 {
[%emt 0:00:19]} g4 {[%emt 0:00:00]} 41. hxg4 {[%emt 0:01:21]} hxg4 {[%emt 0:00:
00]} 42. Ke2 {[%emt 0:00:13]} f5 {[%emt 0:00:00]} 43. f4 {[%emt 0:00:00]} Nd7 {
[%emt 0:00:00]} 44. b4 {[%emt 0:00:00]} Nf6 {[%emt 0:00:00]} 45. b5 {[%emt 0:
00:00]} a5 {[%emt 0:00:00]} 46. Nc6 {[%emt 0:00:00]} Ne4 {[%emt 0:00:00]} 47.
Ne5+ {[%emt 0:00:00]} Ke7 {[%emt 0:00:00]} 48. Nxg4 {[%emt 0:00:00]} Qb4 {
[%emt 0:00:00]} 49. Ne5 {[%emt 0:00:00]} Qb2+ {[%emt 0:00:00]} 50. Ke1 {
[%emt 0:00:00]} Qa1+ {[%emt 0:00:00]} 51. Ke2 {[%emt 0:00:00]} Qxa4 {[%emt 0:
00:00]} 52. Qxb6 {[%emt 0:00:00]} Qc2+ {[%emt 0:00:00]} 53. Kf3 {[%emt 0:00:00]
} Qd1+ {[%emt 0:00:00]} 54. Kg2 {[%emt 0:00:00]} Qe2+ {[%emt 0:00:00]} 55. Kh3
{[%emt 0:00:00]} Qf1+ {[%emt 0:00:00]} 56. Kh2 {[%emt 0:00:00]} Qe2+ {[%emt 0:
00:00]} 57. Kh3 {[%emt 0:00:00]} Qh5+ {[%emt 0:00:00]} 58. Kg2 {[%emt 0:00:00]}
Qe2+ {[%emt 0:00:06]} 1/2-1/2

[Event "Gibraltar Masters 18th"]
[Site "Gibraltar"]
[Date "2020.01.21"]
[Round "1.22"]
[White "Paravyan, David"]
[Black "Beinoras, Mindaugas"]
[Result "1-0"]
[ECO "C43"]
[WhiteElo "2629"]
[BlackElo "2355"]
[PlyCount "53"]
[EventDate "2020.01.21"]
[EventType "swiss"]
[EventRounds "10"]
[EventCountry "GGB"]
[SourceTitle "BritBase"]
[Source "John Saunders"]
[SourceDate "2021.06.05"]
[SourceVersion "1"]
[SourceVersionDate "2021.06.05"]
[SourceQuality "1"]
[TimeControl "40/100:0"]
[WhiteClock "0:01:39"]
[BlackClock "0:02:04"]

1. e4 {[%emt 0:00:00]} e5 {[%emt 0:00:00]} 2. Nf3 {[%emt 0:00:00]} Nf6 {
[%emt 0:00:00]} 3. d4 {[%emt 0:00:00]} Nxe4 {[%emt 0:00:00]} 4. Bd3 {[%emt 0:
00:00]} d5 {[%emt 0:00:00]} 5. Nxe5 {[%emt 0:00:00]} Nd7 {[%emt 0:00:00]} 6.
Nc3 {[%emt 0:00:00]} Nxe5 {[%emt 0:00:00]} 7. dxe5 {[%emt 0:00:00]} Bb4 {
[%emt 0:00:00]} 8. O-O {[%emt 0:00:00]} Nxc3 {[%emt 0:00:00]} 9. bxc3 {[%emt 0:
00:00]} Bxc3 {[%emt 0:00:00]} 10. Rb1 {[%emt 0:00:00]} Qh4 {[%emt 0:00:00]} 11.
Ba3 {[%emt 0:00:00]} Bg4 {[%emt 0:00:00]} 12. Bb5+ {[%emt 0:00:00]} c6 {
[%emt 0:00:00]} 13. Qxd5 {[%emt 0:00:00]} Bd7 {[%emt 0:00:00]} 14. Qb3 {
[%emt 0:00:00]} Bxe5 {[%emt 0:00:00]} 15. g3 {[%emt 0:00:00]} Qf6 {[%emt 0:00:
00]} 16. Rfe1 {[%emt 0:00:00]} Kd8 {[%emt 0:00:00]} 17. Bf1 {[%emt 0:00:00]} b6
{[%emt 0:00:00]} 18. Rbd1 {[%emt 0:00:00]} Kc7 {[%emt 0:00:00]} 19. Rxe5 {
[%emt 0:00:00]} Qxe5 {[%emt 0:00:00]} 20. Qxf7 {[%emt 0:00:00]} Qf5 {[%emt 0:
00:00]} 21. Qxg7 {[%emt 0:00:00]} Rad8 {[%emt 0:00:00]} 22. Ba6 {[%emt 0:00:43]
} Rde8 {[%emt 0:00:00]} 23. Qd4 {[%emt 0:00:22]} c5 {[%emt 0:00:46]} 24. Qd6+ {
[%emt 0:00:00]} Kd8 {[%emt 0:00:00]} 25. Qb8+ {[%emt 0:00:00]} Ke7 {[%emt 0:00:
00]} 26. Qd6+ {[%emt 0:00:00]} Kd8 {[%emt 0:00:00]} 27. Bb5 {[%emt 0:00:00]}
1-0

[Event "Gibraltar Masters 18th"]
[Site "Gibraltar"]
[Date "2020.01.21"]
[Round "1.23"]
[White "Petrov, Vladimir Sergeev"]
[Black "Deac, Bogdan-Daniel"]
[Result "1/2-1/2"]
[ECO "B83"]
[WhiteElo "2353"]
[BlackElo "2626"]
[PlyCount "62"]
[EventDate "2020.01.21"]
[EventType "swiss"]
[EventRounds "10"]
[EventCountry "GGB"]
[SourceTitle "BritBase"]
[Source "John Saunders"]
[SourceDate "2021.06.05"]
[SourceVersion "1"]
[SourceVersionDate "2021.06.05"]
[SourceQuality "1"]
[TimeControl "40/100:0"]
[WhiteClock "0:18:17"]
[BlackClock "0:33:11"]

1. e4 {[%emt 0:00:00]} c5 {[%emt 0:00:00]} 2. Nf3 {[%emt 0:00:00]} Nc6 {
[%emt 0:00:00]} 3. d4 {[%emt 0:00:00]} cxd4 {[%emt 0:00:00]} 4. Nxd4 {[%emt 0:
00:00]} e6 {[%emt 0:00:00]} 5. Nc3 {[%emt 0:00:00]} Qc7 {[%emt 0:00:00]} 6. Be2
{[%emt 0:00:00]} Nf6 {[%emt 0:00:00]} 7. O-O {[%emt 0:00:00]} Be7 {[%emt 0:00:
00]} 8. Be3 {[%emt 0:00:00]} O-O {[%emt 0:00:00]} 9. f4 {[%emt 0:00:00]} d6 {
[%emt 0:00:00]} 10. Kh1 {[%emt 0:00:00]} Nxd4 {[%emt 0:00:00]} 11. Qxd4 {
[%emt 0:00:00]} b6 {[%emt 0:00:00]} 12. e5 {[%emt 0:00:00]} dxe5 {[%emt 0:00:
00]} 13. fxe5 {[%emt 0:00:00]} Nd7 {[%emt 0:00:00]} 14. Bf3 {[%emt 0:00:00]}
Ba6 {[%emt 0:00:00]} 15. Bxa8 {[%emt 0:00:00]} Bxf1 {[%emt 0:00:00]} 16. Rxf1 {
[%emt 0:00:00]} Rxa8 {[%emt 0:00:00]} 17. Nb5 {[%emt 0:00:00]} Qc6 {[%emt 0:00:
00]} 18. Qf4 {[%emt 0:00:00]} Rf8 {[%emt 0:00:00]} 19. Nxa7 {[%emt 0:00:00]}
Qxc2 {[%emt 0:00:00]} 20. Qd4 {[%emt 0:00:00]} Qc7 {[%emt 0:00:00]} 21. Rd1 {
[%emt 0:00:00]} Rd8 {[%emt 0:00:00]} 22. Qa4 {[%emt 0:00:00]} Nxe5 {[%emt 0:00:
00]} 23. Rxd8+ {[%emt 0:00:00]} Qxd8 {[%emt 0:00:00]} 24. Nc6 {[%emt 0:00:00]}
Nxc6 {[%emt 0:00:00]} 25. Qxc6 {[%emt 0:00:00]} Qd1+ {[%emt 0:00:00]} 26. Bg1 {
[%emt 0:00:00]} Bc5 {[%emt 0:00:00]} 27. Qe8+ {[%emt 0:00:00]} Bf8 {[%emt 0:00:
00]} 28. Qb5 {[%emt 0:00:00]} Bc5 {[%emt 0:00:00]} 29. Qe8+ {[%emt 0:00:00]}
Bf8 {[%emt 0:00:00]} 30. Qb5 {[%emt 0:00:00]} Bc5 {[%emt 0:00:00]} 31. Qe8+ {
[%emt 0:00:00]} Bf8 {[%emt 0:00:00]} 1/2-1/2

[Event "Gibraltar Masters 18th"]
[Site "Gibraltar"]
[Date "2020.01.21"]
[Round "1.24"]
[White "Durarbayli, Vasif"]
[Black "Barrish, Daniel"]
[Result "1-0"]
[ECO "C88"]
[WhiteElo "2625"]
[BlackElo "2352"]
[PlyCount "55"]
[EventDate "2020.01.21"]
[EventType "swiss"]
[EventRounds "10"]
[EventCountry "GGB"]
[SourceTitle "BritBase"]
[Source "John Saunders"]
[SourceDate "2021.06.05"]
[SourceVersion "1"]
[SourceVersionDate "2021.06.05"]
[SourceQuality "1"]
[TimeControl "40/100:0"]
[WhiteClock "0:36:14"]
[BlackClock "0:18:36"]

1. e4 {[%emt 0:00:07]} e5 {[%emt 0:00:00]} 2. Nf3 {[%emt 0:00:00]} Nc6 {
[%emt 0:00:00]} 3. Bb5 {[%emt 0:00:00]} a6 {[%emt 0:00:00]} 4. Ba4 {[%emt 0:00:
00]} Nf6 {[%emt 0:00:00]} 5. O-O {[%emt 0:00:00]} Be7 {[%emt 0:00:00]} 6. Re1 {
[%emt 0:00:00]} b5 {[%emt 0:00:00]} 7. Bb3 {[%emt 0:00:00]} O-O {[%emt 0:00:00]
} 8. a4 {[%emt 0:00:00]} Bb7 {[%emt 0:00:00]} 9. d3 {[%emt 0:00:00]} d6 {
[%emt 0:00:00]} 10. Nbd2 {[%emt 0:00:00]} Nd7 {[%emt 0:00:00]} 11. axb5 {
[%emt 0:00:00]} axb5 {[%emt 0:00:00]} 12. Rxa8 {[%emt 0:00:00]} Qxa8 {[%emt 0:
00:00]} 13. c3 {[%emt 0:00:00]} Nc5 {[%emt 0:00:00]} 14. Bc2 {[%emt 0:00:00]}
b4 {[%emt 0:00:00]} 15. Nc4 {[%emt 0:00:00]} bxc3 {[%emt 0:00:00]} 16. bxc3 {
[%emt 0:00:00]} Bf6 {[%emt 0:00:00]} 17. Ne3 {[%emt 0:00:00]} Qa1 {[%emt 0:00:
00]} 18. Nd5 {[%emt 0:00:00]} Bd8 {[%emt 0:00:00]} 19. Qe2 {[%emt 0:00:00]} Qa2
{[%emt 0:00:00]} 20. Be3 {[%emt 0:00:00]} Nd7 {[%emt 0:00:00]} 21. Rb1 {
[%emt 0:00:00]} Qa8 {[%emt 0:00:00]} 22. Bg5 {[%emt 0:00:00]} f6 {[%emt 0:00:
00]} 23. Bc1 {[%emt 0:00:00]} Ne7 {[%emt 0:00:00]} 24. Nxe7+ {[%emt 0:00:00]}
Bxe7 {[%emt 0:00:00]} 25. Nh4 {[%emt 0:00:00]} Rd8 {[%emt 0:00:00]} 26. Qg4 {
[%emt 0:00:00]} Kh8 {[%emt 0:00:00]} 27. d4 {[%emt 0:00:00]} Qa2 {[%emt 0:00:
00]} 28. Bb3 {[%emt 0:00:00]} 1-0

[Event "Gibraltar Masters 18th"]
[Site "Gibraltar"]
[Date "2020.01.21"]
[Round "1.25"]
[White "Bellon Lopez, Juan Manuel"]
[Black "Vocaturo, Daniele"]
[Result "0-1"]
[ECO "D02"]
[WhiteElo "2348"]
[BlackElo "2622"]
[PlyCount "92"]
[EventDate "2020.01.21"]
[EventType "swiss"]
[EventRounds "10"]
[EventCountry "GGB"]
[SourceTitle "BritBase"]
[Source "John Saunders"]
[SourceDate "2021.06.05"]
[SourceVersion "1"]
[SourceVersionDate "2021.06.05"]
[SourceQuality "1"]
[TimeControl "40/100:0"]
[WhiteClock "0:02:48"]
[BlackClock "0:32:39"]

1. d4 {[%emt 0:00:00]} d5 {[%emt 0:00:00]} 2. Nf3 {[%emt 0:00:00]} Nf6 {
[%emt 0:00:00]} 3. Bf4 {[%emt 0:00:00]} c5 {[%emt 0:00:00]} 4. e3 {[%emt 0:00:
00]} Nc6 {[%emt 0:00:00]} 5. c3 {[%emt 0:00:00]} Qb6 {[%emt 0:00:00]} 6. Qb3 {
[%emt 0:00:00]} c4 {[%emt 0:00:00]} 7. Qxb6 {[%emt 0:00:00]} axb6 {[%emt 0:00:
00]} 8. Na3 {[%emt 0:00:00]} Ra5 {[%emt 0:00:00]} 9. Ne5 {[%emt 0:00:00]} Bf5 {
[%emt 0:00:00]} 10. f3 {[%emt 0:00:00]} e6 {[%emt 0:00:00]} 11. Naxc4 {[%emt 0:
00:00]} dxc4 {[%emt 0:00:00]} 12. Nxc4 {[%emt 0:00:00]} Ra6 {[%emt 0:00:00]}
13. Nd6+ {[%emt 0:00:00]} Bxd6 {[%emt 0:00:00]} 14. Bxa6 {[%emt 0:00:00]} Bxf4
{[%emt 0:00:00]} 15. Bxb7 {[%emt 0:00:00]} Nd8 {[%emt 0:00:00]} 16. exf4 {
[%emt 0:00:00]} Nxb7 {[%emt 0:00:00]} 17. c4 {[%emt 0:00:00]} Na5 {[%emt 0:00:
00]} 18. g4 {[%emt 0:00:00]} Bg6 {[%emt 0:00:00]} 19. b3 {[%emt 0:00:00]} h5 {
[%emt 0:00:00]} 20. f5 {[%emt 0:00:00]} exf5 {[%emt 0:00:00]} 21. g5 {[%emt 0:
00:00]} Nd7 {[%emt 0:00:00]} 22. f4 {[%emt 0:00:00]} Ke7 {[%emt 0:00:00]} 23.
Kd2 {[%emt 0:00:00]} Kd6 {[%emt 0:00:00]} 24. Rae1 {[%emt 0:00:00]} h4 {
[%emt 0:00:00]} 25. Kc3 {[%emt 0:00:00]} Rc8 {[%emt 0:00:00]} 26. a4 {[%emt 0:
00:00]} Nf8 {[%emt 0:00:00]} 27. Re5 {[%emt 0:00:00]} Ne6 {[%emt 0:00:00]} 28.
Rb5 {[%emt 0:00:00]} Kc7 {[%emt 0:00:00]} 29. b4 {[%emt 0:00:00]} Nb7 {[%emt 0:
00:00]} 30. Rf1 {[%emt 0:00:00]} Ra8 {[%emt 0:00:00]} 31. d5 {[%emt 0:00:00]}
Nd6 {[%emt 0:00:00]} 32. dxe6 {[%emt 0:00:00]} Nxb5+ {[%emt 0:00:00]} 33. axb5
{[%emt 0:00:00]} fxe6 {[%emt 0:00:00]} 34. c5 {[%emt 0:00:00]} Ra3+ {[%emt 0:
00:00]} 35. Kd4 {[%emt 0:00:00]} bxc5+ {[%emt 0:00:00]} 36. bxc5 {[%emt 0:00:
00]} Ra4+ {[%emt 0:00:00]} 37. Kc3 {[%emt 0:00:00]} Be8 {[%emt 0:00:00]} 38.
b6+ {[%emt 0:00:00]} Kb7 {[%emt 0:00:00]} 39. Kb3 {[%emt 0:00:00]} Bb5 {
[%emt 0:00:00]} 40. Re1 {[%emt 0:00:24]} Rxf4 {[%emt 0:00:00]} 41. Ra1 {
[%emt 0:01:12]} Bc4+ {[%emt 0:00:00]} 42. Kc3 {[%emt 0:00:02]} Ba6 {[%emt 0:00:
00]} 43. Rd1 {[%emt 0:00:00]} Rc4+ {[%emt 0:00:00]} 44. Kb3 {[%emt 0:00:00]}
Rxc5 {[%emt 0:00:00]} 45. Rd7+ {[%emt 0:00:00]} Kxb6 {[%emt 0:00:00]} 46. Rxg7
{[%emt 0:00:00]} f4 {[%emt 0:00:00]} 0-1